bitfinex-derivatives/quotes_ETHF0:USTF0_20250323
["timestamp","ask_amount","ask_price","bid_price","bid_amount"]
[1742748977979,4.23723,1999.9,1999.8,1.2832]
[1742748980081,4.23723,1999.9,1999.8,2.28348]
[1742748980287,4.23723,1999.9,1999.8,1.2832]
[1742748980674,4.23723,1999.9,1999.8,2.28348]
[1742748982286,0.6823,2000.0,1999.8,2.28348]
[1742748982287,6.5326,2000.2,1999.8,1.2832]
[1742748982479,4.23715,2000.1,2000.0,1.00016]
[1742748982879,1.00018,2000.0,1999.9,2.40018]
[1742748983078,1.00018,2000.0,1999.9,1.4]
[1742748983487,4.23715,2000.1,1999.9,2.40018]
[1742748983891,4.23715,2000.1,2000.0,1.4]
[1742748984576,4.23715,2000.1,2000.0,2.40018]
[1742748985989,4.23712,2000.1,2000.0,2.40018]
[1742748986585,3.237,2000.1,2000.0,2.40018]
[1742748988684,4.23712,2000.1,2000.0,2.40018]
[1742748989284,3.237,2000.1,2000.0,2.40018]
[1742748989786,1.67071,2000.2,2000.1,1.00012]
[1742748990095,3.237,2000.2,2000.1,2.31522]
[1742748990282,4.23707,2000.2,2000.1,2.31522]
[1742748990693,4.23707,2000.2,2000.1,1.3151]
[1742748990891,4.23707,2000.2,2000.1,2.31522]
[1742748991093,4.23707,2000.2,2000.1,1.3151]
[1742748991296,1.00018,2000.0,1999.9,3.2078]
[1742748991486,4.23718,2000.0,1999.9,3.2078]
[1742748991987,4.88298,2000.0,1999.9,3.2078]
[1742748992189,1.00023,1999.9,1999.8,1.3739]
[1742748994091,2.35423,1999.9,1999.8,1.3739]
[1742749003904,5.56203,1999.9,1999.8,1.3739]
[1742749004105,2.35423,1999.9,1999.8,1.3739]
[1742749007711,2.35423,1999.9,1999.6,0.7051]
[1742749007712,1.00033,1999.7,1999.6,0.7051]
[1742749008006,4.23733,1999.7,1999.6,0.7051]
[1742749009010,4.23733,1999.7,1999.6,3.02358]
[1742749009211,3.237,1999.8,1999.7,1.0003]
[1742749009411,4.23728,1999.8,1999.7,1.3181]
[1742749010297,4.23728,1999.8,1999.7,2.31843]
[1742749010497,4.23728,1999.8,1999.7,1.3181]
[1742749010702,3.237,1999.8,1999.7,2.31843]
[1742749012502,4.23728,1999.8,1999.7,2.31843]
[1742749014514,3.237,1999.8,1999.7,2.31843]
[1742749018805,2.39426,1999.9,1999.8,1.00028]
[1742749019009,3.237,1999.9,1999.8,2.99528]
[1742749019806,0.6904,2000.2,2000.1,1.00012]
[1742749020012,5.53902,2000.2,2000.0,1.00015]
[1742749020213,5.53902,2000.2,2000.1,2.0079]
[1742749021414,2.50032,2000.1,1999.6,9.1658]
[1742749021713,1.00033,1999.7,1999.6,0.6406]
[1742749021919,4.23733,1999.7,1999.6,0.6406]
[1742749023117,6.29393,1999.7,1999.6,2.0575]
[1742749023515,6.29393,1999.7,1999.6,1.4169]
[1742749024624,1.00063,1999.1,1999.0,9.1658]
[1742749024813,1.00063,1999.1,1999.0,0.693]
[1742749025019,1.00068,1999.0,1998.9,0.6567]
[1742749025317,5.73861,1999.1,1998.7,0.693]
[1742749025520,1.00078,1998.8,1998.7,0.693]
[1742749026017,1.00078,1998.8,1998.7,2.0777]
[1742749028817,2.40108,1998.8,1998.7,2.0777]
[1742749033228,2.40108,1998.8,1998.7,1.3847]
[1742749033423,3.09518,1998.8,1998.7,1.3847]
[1742749041127,1.00074,1998.9,1998.7,1.3847]
[1742749041434,4.23874,1998.9,1998.8,0.6688]
[1742749041633,5.59374,1998.9,1998.8,0.6688]
[1742749042027,5.59374,1998.9,1998.8,1.9771]
[1742749042823,4.23874,1998.9,1998.8,1.9771]
[1742749043023,0.6633,1999.1,1998.9,1.00073]
[1742749043236,4.23868,1999.0,1998.9,0.6898]
[1742749043924,5.58968,1999.0,1998.9,0.6898]
[1742749046544,3.21529232,1999.2,1998.9,0.6898]
[1742749046726,4.23864,1999.1,1998.9,1.6905]
[1742749047130,5.53394,1999.1,1998.9,1.6905]
[1742749047340,1.00068,1999.0,1998.9,0.6898]
[1742749047535,2.29598,1999.0,1998.9,0.6898]
[1742749048033,2.29598,1999.0,1998.9,1.69053]
[1742749049338,2.29598,1999.0,1998.9,0.6898]
[1742749049637,2.29598,1999.0,1998.9,1.69053]
[1742749049830,2.29598,1999.0,1998.9,0.6898]
[1742749050529,1.00073,1998.9,1998.8,0.6688]
[1742749050729,6.28863,1998.9,1998.8,0.6688]
[1742749051341,5.2879,1998.9,1998.6,3.2078]
[1742749051643,1.4051,1998.8,1998.7,1.00083]
[1742749051832,4.89915,1998.9,1998.7,1.00083]
[1742749052032,1.00078,1998.8,1998.7,1.00083]
[1742749052330,3.8984,1998.9,1998.7,1.00083]
[1742749052530,1.00078,1998.8,1998.7,1.00083]
[1742749053338,4.23877,1998.9,1998.8,1.00078]
[1742749053538,1.00077,1998.9,1998.7,1.00079]
[1742749053735,1.4051,1999.0,1998.9,1.00073]
[1742749053941,3.238,1999.0,1998.9,1.00073]
[1742749054337,3.238,1999.0,1998.9,3.71623]
[1742749055038,0.00749232,1999.2,1999.1,1.00063]
[1742749055340,0.00749232,1999.2,1999.1,4.20843]
[1742749055528,1.00807232,1999.2,1999.1,4.20843]
[1742749055728,2.28777232,1999.2,1999.0,2.35623]
[1742749056128,2.28777232,1999.2,1999.1,1.3556]
[1742749058240,2.28777232,1999.2,1999.1,2.35623]
[1742749058632,1.28719232,1999.2,1999.1,2.35623]
[1742749058829,0.00749232,1999.2,1999.1,2.35623]
[1742749059032,0.00749232,1999.2,1999.1,5.56403]
[1742749063533,0.00749232,1999.2,1999.1,8.06403]
[1742749063844,1.00038,1999.6,1999.5,1.00043]
[1742749064643,2.33986,1999.7,1999.6,1.00038]
[1742749064835,1.00785232,1999.7,1999.6,1.64578]
[1742749065030,1.00785232,1999.7,1999.6,0.6454]
[1742749065544,2.34735232,1999.7,1999.6,2.0124]
[1742749066647,2.34735232,1999.7,1999.6,3.01278]
[1742749066851,0.00749232,1999.7,1999.6,3.01278]
[1742749067041,0.00749232,1999.7,1999.6,6.22058]
[1742749072447,2.3806,2000.0,1999.9,1.00023]
[1742749072645,1.3804,2000.0,1999.9,1.00023]
[1742749072950,4.87665,2000.1,1999.8,3.2078]
[1742749072951,4.23611,2000.2,2000.1,1.00012]
[1742749073247,1.00013,2000.1,2000.0,1.00014]
[1742749073449,2.31623,2000.1,2000.0,2.41394]
[1742749075347,1.3161,2000.1,2000.0,2.41394]
[1742749075948,2.31622,2000.1,2000.0,2.41398]
[1742749076847,1.3161,2000.1,2000.0,2.41398]
[1742749077046,2.31622,2000.1,2000.0,2.41398]
[1742749078539,2.31622,2000.1,2000.0,1.4138]
[1742749079450,1.00023,1999.9,1999.8,5.958]
[1742749079645,4.23623,1999.9,1999.8,5.958]
[1742749079944,4.23623,1999.9,1999.8,7.3587]
[1742749080147,5.55053,1999.9,1999.8,5.958]
[1742749080743,5.55053,1999.9,1999.8,7.3587]
[1742749082141,4.5503,1999.9,1999.8,8.35898]
[1742749082343,4.5503,1999.9,1999.8,5.60878]
[1742749082544,3.236,1999.9,1999.8,5.60878]
[1742749082743,3.236,1999.9,1999.8,6.29018]
[1742749082946,3.236,2000.1,1999.8,6.29018]
[1742749083141,3.236,2000.1,2000.0,4.20796]
[1742749083142,5.65342,2000.1,2000.0,4.20796]
[1742749083441,4.23612,2000.1,2000.0,4.20796]
[1742749084342,3.236,2000.1,2000.0,4.20796]
[1742749085153,4.23612,2000.1,2000.0,4.20796]
[1742749085352,1.00018,2000.0,1999.9,1.4032]
[1742749085538,1.00027,1999.9,1999.8,1.3968]
[1742749085743,4.23527,1999.9,1999.8,1.3968]
[1742749087151,1.00033,1999.7,1999.6,4.86444]
[1742749087352,1.00033,1999.7,1999.6,4.20814]
[1742749088445,2.41011,1999.8,1999.7,1.00033]
[1742749088649,2.41011,1999.8,1999.7,1.69723]
[1742749088853,2.41011,1999.8,1999.7,3.08013]
[1742749089054,2.41011,1999.8,1999.7,1.3829]
[1742749090838,2.41011,1999.8,1999.7,2.38323]
[1742749091058,2.41011,1999.8,1999.7,2.0692]
[1742749091348,2.41011,1999.8,1999.7,1.3829]
[1742749091951,2.41011,1999.8,1999.7,2.38323]
[1742749092952,2.41011,1999.8,1999.7,1.3829]
[1742749093353,1.00033,1999.7,1999.6,3.2078]
[1742749093556,1.00033,1999.7,1999.6,4.5703]
[1742749093747,4.23533,1999.7,1999.6,4.5703]
[1742749093943,1.00043,1999.5,1999.4,0.00749232]
[1742749094152,4.23543,1999.5,1999.4,0.00749232]
[1742749094546,7.04762375,1999.5,1999.4,0.00749232]
[1742749096560,1.00063,1999.1,1998.9,1.65988]
[1742749096748,4.23663,1999.1,1999.0,1.3289]
[1742749101563,4.88663,1999.1,1999.0,1.3289]
[1742749103562,3.236,1999.1,1999.0,1.3289]
[1742749103761,3.236,1999.1,1999.0,2.32958]
[1742749104058,0.00749232,1999.2,1999.1,1.00063]
[1742749104264,3.24349232,1999.2,1999.1,2.33773]
[1742749105161,0.00749232,1999.2,1999.1,2.33773]
[1742749105863,0.00749232,1999.2,1999.1,3.01453]
[1742749106465,1.00807232,1999.2,1999.1,2.0139]
[1742749106656,1.71707232,1999.2,1999.1,2.0139]
[1742749107260,1.71707232,1999.2,1999.1,1.3371]
[1742749108569,1.00807232,1999.2,1999.1,2.33773]
[1742749109252,4.24407232,1999.2,1999.1,2.33773]
[1742749112056,4.24407232,1999.2,1999.1,1.3371]
[1742749114568,4.24407232,1999.2,1999.1,2.33773]
[1742749114965,4.24407232,1999.2,1999.1,1.3371]
[1742749117073,3.24349232,1999.2,1999.1,2.33773]
[1742749117461,0.00749232,1999.2,1999.1,2.33773]
[1742749117667,46.237,1999.8,1999.5,1.00043]
[1742749117870,5.52513,1999.7,1999.6,2.0746]
[1742749118174,5.52513,1999.7,1999.6,3.07498]
[1742749118473,3.236,1999.7,1999.6,3.07498]
[1742749118872,3.236,1999.7,1999.6,3.72038]
[1742749119079,0.00749232,1999.8,1999.7,1.00033]
[1742749119378,1.00777232,1999.8,1999.7,1.367]
[1742749119566,2.28687232,1999.8,1999.7,1.367]
[1742749119771,2.98087232,1999.8,1999.7,1.367]
[1742749122172,2.98087232,1999.8,1999.7,2.36733]
[1742749122461,1.28659232,1999.8,1999.7,2.36733]
[1742749122667,0.00749232,1999.8,1999.7,2.36733]
[1742749124175,1.00777232,1999.8,1999.7,1.367]
[1742749124375,2.42787232,1999.8,1999.7,1.367]
[1742749125580,3.20911139,1999.8,1999.7,1.367]
[1742749126480,2.42787232,1999.8,1999.7,1.367]
[1742749133379,7.1361,1999.9,1999.7,1.367]
[1742749133380,4.56397232,1999.9,1999.7,1.367]
[1742749133684,1.00028,1999.8,1999.7,1.367]
[1742749136788,2.94468,1999.8,1999.7,1.367]
[1742749137589,1.00043,1999.5,1999.4,0.6584]
[1742749137791,4.23643,1999.5,1999.4,2.0177]
[1742749138991,3.236,1999.5,1999.4,3.01818]
[1742749139188,4.23643,1999.5,1999.4,3.01818]
[1742749139389,3.236,1999.5,1999.4,3.01818]
[1742749140693,2.736,1999.5,1999.4,3.01818]
[1742749141391,3.73643,1999.5,1999.4,3.01818]
[1742749143288,3.73643,1999.5,1999.4,2.0177]
[1742749143682,5.06343,1999.5,1999.4,2.0177]
[1742749144993,5.06343,1999.5,1999.4,1.3593]
[1742749145199,5.73703,1999.5,1999.4,1.3593]
[1742749146298,6.5196177,1999.5,1999.4,1.3593]
[1742749153407,5.73703,1999.5,1999.4,1.3593]
[1742749156008,6.51871481,1999.5,1999.4,1.3593]
[1742749156802,6.59687846,1999.5,1999.4,1.3593]
[1742749157307,6.59687971,1999.5,1999.4,1.3593]
[1742749158103,6.59687971,1999.5,1999.4,1.34431536]
[1742749159103,6.59688631,1999.5,1999.4,1.34431536]
[1742749160018,6.51871481,1999.5,1999.4,1.34431536]
[1742749160310,6.51833712,1999.5,1999.4,1.34431536]
[1742749160509,5.73703,1999.5,1999.4,1.34431536]
[1742749160912,6.51830513,1999.5,1999.4,1.34431536]
[1742749164701,6.59646987,1999.5,1999.4,1.34431536]
[1742749166009,6.59646987,1999.5,1999.4,0.61421536]
[1742749166309,1.00053,1999.3,1999.2,0.6948]
[1742749166505,4.23653,1999.3,1999.2,0.6948]
[1742749166711,1.00063,1999.1,1999.0,0.645]
[1742749166909,4.23663,1999.1,1999.0,0.645]
[1742749167411,6.40556004,1999.1,1999.0,0.645]
[1742749168112,7.08286004,1999.1,1999.0,0.645]
[1742749168806,7.4771316,1999.1,1999.0,0.645]
[1742749169611,7.4771316,1999.1,1999.0,1.982]
[1742749169914,7.08286004,1999.1,1999.0,1.982]
[1742749171015,6.40556004,1999.1,1999.0,1.982]
[1742749173018,6.80583128,1999.1,1999.0,1.982]
[1742749174515,7.55578017,1999.1,1999.0,1.337]
[1742749175320,7.63394558,1999.1,1999.0,1.337]
[1742749175521,6.88399669,1999.1,1999.0,1.337]
[1742749176629,1.00068,1999.0,1998.9,0.00749232]
[1742749176929,6.24318,1999.0,1998.9,0.00749232]
[1742749180932,5.55568,1999.0,1998.9,0.00749232]
[1742749183922,10.417,1999.0,1998.7,0.7056]
[1742749184128,1.00088,1998.6,1998.5,0.6428]
[1742749184337,4.23688,1998.6,1998.5,0.6428]
[1742749185032,7.44468,1998.6,1998.5,0.6428]
[1742749187233,7.44468,1998.6,1998.5,2.0035]
[1742749189349,6.4438,1998.6,1998.5,3.00443]
[1742749189835,3.2078,1998.6,1998.5,3.00443]
[1742749190035,6.4438,1998.6,1998.5,3.00443]
[1742749190437,3.2078,1998.6,1998.5,3.00443]
[1742749191040,6.4438,1998.6,1998.5,3.00443]
[1742749191542,7.44468,1998.6,1998.5,2.0035]
[1742749191742,3.236,1998.6,1998.5,3.00443]
[1742749195345,3.236,1998.6,1998.5,2.0035]
[1742749195544,3.236,1998.6,1998.5,3.00443]
[1742749197633,3.236,1998.6,1998.5,2.0035]
[1742749198038,3.236,1998.6,1998.5,3.00443]
[1742749199139,4.23688,1998.6,1998.5,2.0035]
[1742749199447,4.23688,1998.6,1998.5,3.00443]
[1742749199951,4.23688,1998.6,1998.5,2.0035]
[1742749200344,4.23688,1998.6,1998.5,1.3607]
[1742749200542,4.89278,1998.6,1998.5,1.3607]
[1742749202043,3.236,1998.6,1998.5,1.3607]
[1742749202250,3.236,1998.6,1998.5,2.36163]
[1742749204050,3.236,1998.6,1998.5,1.3607]
[1742749204342,5.62148,1998.6,1998.5,1.3607]
[1742749204745,4.6206,1998.6,1998.5,1.3607]
[1742749205144,4.6206,1998.6,1998.5,2.36163]
[1742749209054,3.236,1998.6,1998.5,2.36163]
[1742749209353,4.62579232,1998.7,1998.6,1.00088]
[1742749209549,0.00749232,1998.7,1998.6,2.37428]
[1742749210650,0.00749232,1998.7,1998.6,5.58208]
[1742749215157,47.26355,1999.3,1999.1,1.00063]
[1742749215457,47.26355,1999.3,1999.2,1.2806]
[1742749215752,48.045136,1999.3,1999.2,1.2806]
[1742749216248,51.281136,1999.3,1999.2,1.2806]
[1742749216448,51.82145,1999.3,1999.2,1.2806]
[1742749217656,4.5579,1999.3,1999.2,2.28118]
[1742749219062,5.55843,1999.3,1999.2,2.28118]
[1742749219263,5.55843,1999.3,1999.2,1.2806]
[1742749219661,6.20513,1999.3,1999.2,1.2806]
[1742749220350,6.20513,1999.3,1999.2,2.28118]
[1742749220556,6.20513,1999.3,1999.2,1.2806]
[1742749221367,6.20513,1999.3,1999.2,2.28118]
[1742749221960,5.55843,1999.3,1999.2,2.28118]
[1742749222770,5.55843,1999.3,1999.2,1.2806]
[1742749223070,1.00058,1999.2,1999.1,1.70349]
[1742749223265,2.99938,1999.2,1999.1,2.28293]
[1742749225962,1.9988,1999.2,1999.1,2.28293]
[1742749226166,1.328,1999.2,1999.1,2.28293]
[1742749226462,2.32858,1999.2,1999.1,2.28293]
[1742749229055,2.32858,1999.2,1999.1,1.2823]
[1742749229565,3.01468,1999.2,1999.1,2.28293]
[1742749231061,2.0141,1999.2,1998.9,3.8621]
[1742749231263,2.0141,1999.2,1999.0,1.00068]
[1742749231264,4.5159,1999.1,1999.0,1.00068]
[1742749231460,4.5159,1999.1,1999.0,2.34648]
[1742749231665,5.51653,1999.1,1999.0,2.34648]
[1742749232062,4.5159,1999.1,1999.0,2.34648]
[1742749232872,5.51653,1999.1,1999.0,2.34648]
[1742749233272,4.5159,1999.1,1999.0,2.34648]
[1742749234273,5.51653,1999.1,1999.0,2.34648]
[1742749234769,4.5159,1999.1,1999.0,2.34648]
[1742749235370,5.51653,1999.1,1999.0,2.34648]
[1742749235672,4.5159,1999.1,1999.0,2.34648]
[1742749235872,5.51653,1999.1,1999.0,1.3458]
[1742749236175,1.00082,1998.8,1998.7,4.2086]
[1742749236869,3.00942,1998.8,1998.7,4.2086]
[1742749237068,2.0086,1998.8,1998.7,4.2086]
[1742749237273,3.00938,1998.8,1998.7,1.0008]
[1742749237984,1.00083,1998.7,1998.6,2.38914]
[1742749238169,1.3901,1998.7,1998.6,2.38914]
[1742749238673,4.6241,1998.7,1998.6,2.38914]
[1742749239072,5.62493,1998.7,1998.6,1.3883]
[1742749239272,6.30703,1998.7,1998.6,1.3883]
[1742749239968,5.3062,1998.7,1998.6,1.3883]
[1742749240169,5.3062,1998.7,1998.6,2.38918]
[1742749241575,5.3062,1998.7,1998.5,1.3116]
[1742749241779,1.00093,1998.5,1998.4,0.00749232]
[1742749241974,4.23493,1998.5,1998.4,0.00749232]
[1742749242276,4.87763,1998.5,1998.4,0.00749232]
[1742749242869,4.87763,1998.5,1998.4,1.42529232]
[1742749250783,3.8767,1998.5,1998.4,1.42529232]
[1742749250979,4.87763,1998.5,1998.4,1.42529232]
[1742749251286,6.17323,1998.5,1998.4,1.42529232]
[1742749251783,5.1723,1998.5,1998.4,1.42529232]
[1742749252382,1.2956,1998.5,1998.4,2.42627232]
[1742749252779,4.5306,1998.5,1998.4,2.42627232]
[1742749256395,4.5306,1998.5,1998.4,1.42529232]
[1742749257097,4.5306,1998.5,1998.4,2.42627232]
[1742749258098,1.68297,1998.7,1998.4,2.42627232]
[1742749258099,1.00087,1998.7,1998.5,1.00089]
[1742749258299,4.23588,1998.6,1998.5,0.6399]
[1742749258502,4.23588,1998.6,1998.5,2.0117]
[1742749258901,5.65528,1998.6,1998.5,2.0117]
[1742749260203,5.65528,1998.6,1998.5,1.3718]
[1742749260406,1.00093,1998.5,1998.4,1.37929232]
[1742749260706,3.07483,1998.5,1998.4,1.37929232]
[1742749261406,3.07483,1998.5,1998.4,0.00749232]
[1742749262202,3.07483,1998.5,1998.4,1.39729232]
[1742749264502,3.85754165,1998.5,1998.4,1.39729232]
[1742749266098,3.07483,1998.5,1998.4,1.39729232]
[1742749266903,6.4118,1998.7,1998.4,2.39827232]
[1742749266904,3.2078,1998.7,1998.4,2.39827232]
[1742749267096,4.6208,1998.7,1998.6,1.00088]
[1742749267296,4.648,1998.7,1998.6,1.00088]
[1742749267497,5.64883,1998.7,1998.6,0.6619]
[1742749267806,5.64883,1998.7,1998.6,2.0025]
[1742749268806,4.648,1998.7,1998.6,3.00338]
[1742749269207,5.64883,1998.7,1998.6,2.0025]
[1742749270093,5.64883,1998.7,1998.6,3.00338]
[1742749270294,5.64883,1998.7,1998.6,2.0025]
[1742749270502,4.648,1998.7,1998.6,3.00338]
[1742749270902,1.413,1998.7,1998.6,3.00338]
[1742749271098,3.234,1998.7,1998.6,3.00338]
[1742749271504,6.4418,1998.8,1998.7,1.00083]
[1742749271704,6.4418,1998.8,1998.7,2.32073]
[1742749271910,3.2078,1998.8,1998.7,2.32073]
[1742749272102,6.4418,1998.8,1998.7,2.32073]
[1742749272899,3.234,1999.0,1998.9,1.00073]
[1742749273503,3.234,1999.0,1998.9,3.71093]
[1742749273803,4.01800207,1999.0,1998.9,3.71093]
[1742749274203,3.234,1999.0,1998.9,3.71093]
[1742749274512,4.23468,1999.0,1998.9,2.7102]
[1742749275105,5.54318,1999.0,1998.9,2.7102]
[1742749275414,5.54318,1999.0,1998.9,3.71093]
[1742749275917,4.5425,1999.0,1998.9,3.71093]
[1742749277020,5.54318,1999.0,1998.9,2.7102]
[1742749277614,6.20678,1999.0,1998.9,2.7102]
[1742749278215,6.98973921,1999.0,1998.9,1.3199]
[1742749278615,1.00078,1998.8,1998.7,1.342]
[1742749278813,4.23478,1998.8,1998.7,2.7421]
[1742749279316,5.56818,1998.8,1998.7,2.7421]
[1742749279512,4.5674,1998.8,1998.7,3.74293]
[1742749279715,3.234,1998.8,1998.7,3.74293]
[1742749281017,4.23478,1998.8,1998.7,3.74293]
[1742749281324,4.23471,1999.0,1998.9,1.00073]
[1742749281627,4.6511,1999.0,1998.9,1.00073]
[1742749281814,5.65178,1999.0,1998.8,2.38504]
[1742749282016,4.6511,1999.0,1998.9,1.00073]
[1742749282314,3.234,1999.3,1999.2,1.00054]
[1742749282516,1.00062,1999.2,1999.0,4.89706]
[1742749282722,2.37332,1999.2,1999.1,0.6689]
[1742749282919,2.37332,1999.2,1999.1,2.0523]
[1742749287724,1.3727,1999.2,1999.1,3.05293]
[1742749289024,2.37328,1999.2,1999.1,3.05293]
[1742749289530,2.37328,1999.2,1999.1,2.0523]
[1742749290221,4.23454,1999.3,1999.2,1.00058]
[1742749290418,5.53324,1999.3,1999.2,2.40398]
[1742749290619,5.53324,1999.3,1999.2,1.4034]
[1742749290819,4.23454,1999.3,1999.2,1.4034]
[1742749291333,4.23454,1999.3,1999.2,2.40398]
[1742749291827,4.23454,1999.3,1999.2,1.4034]
[1742749293432,4.93214,1999.3,1999.2,1.4034]
[1742749294527,4.23454,1999.3,1999.2,1.4034]
[1742749294734,4.23453,1999.3,1999.2,1.4034]
[1742749294933,3.234,1999.3,1999.2,2.40398]
[1742749295334,4.6531,1999.3,1999.2,2.40398]
[1742749295534,5.65363,1999.3,1999.2,2.40398]
[1742749295827,5.65363,1999.3,1999.2,1.4034]
[1742749296630,6.43609125,1999.3,1999.2,1.4034]
[1742749297229,5.65363,1999.3,1999.2,1.4034]
[1742749302724,5.65163,1999.3,1999.2,1.4034]
[1742749302930,4.6511,1999.3,1999.2,2.40398]
[1742749303332,5.65163,1999.3,1999.2,2.40398]
[1742749303531,5.65163,1999.3,1999.2,1.4034]
[1742749304741,5.65163,1999.3,1999.2,2.40398]
[1742749306935,5.65163,1999.3,1999.2,1.4034]
[1742749308042,5.65163,1999.3,1999.2,2.40398]
[1742749308845,5.65163,1999.3,1999.2,1.4034]
[1742749310344,6.43592567,1999.3,1999.2,1.4034]
[1742749311735,6.43592567,1999.3,1999.2,2.40398]
[1742749311932,0.78429567,1999.3,1999.2,2.40398]
[1742749312137,0.00749232,1999.4,1999.3,1.00053]
[1742749312341,0.79178799,1999.4,1999.3,2.96783]
[1742749312547,0.79178799,1999.4,1999.3,6.17563]
[1742749312746,0.7843499,1999.7,1999.6,1.00038]
[1742749312947,3.2078,1999.9,1999.8,1.00028]
[1742749313546,4.5687,1999.9,1999.8,1.00028]
[1742749314143,1.3609,1999.9,1999.8,1.00028]
[1742749314840,1.3609,1999.9,1999.8,2.42048]
[1742749316939,0.00749232,2000.0,1999.9,1.00023]
[1742749317136,1.29629232,2000.0,1999.9,2.28533]
[1742749317337,2.29647232,2000.0,1999.9,2.28533]
[1742749318549,1.29629232,2000.0,1999.9,2.28533]
[1742749319446,1.00026,1999.9,1999.7,4.21558232]
[1742749319640,1.4104,1999.8,1999.7,5.51528232]
[1742749320348,0.00749232,2000.0,1999.9,1.00023]
[1742749320550,1.00767232,2000.0,1999.9,1.00023]
[1742749320748,0.00749232,2000.0,1999.9,1.00023]
[1742749320943,0.00749232,2000.0,1999.9,1.70303]
[1742749321952,1.41789232,2000.0,1999.9,1.70303]
[1742749322756,2.41807232,2000.0,1999.9,1.70303]
[1742749323344,1.00023,1999.9,1999.8,2.29995]
[1742749323554,2.97303,1999.9,1999.8,2.29995]
[1742749323854,2.97303,1999.9,1999.8,1.2997]
[1742749325144,2.97303,1999.9,1999.8,2.29998]
[1742749325540,1.9728,1999.9,1999.8,2.29998]
[1742749325737,1.3143,1999.9,1999.8,2.29998]
[1742749326146,1.35519232,2000.0,1999.9,1.00023]
[1742749326340,1.35519232,2000.0,1999.9,1.65013]
[1742749326545,0.00749232,2000.0,1999.9,1.65013]
[1742749326747,0.00749232,2000.0,1999.9,4.85793]
[1742749327453,0.00749232,2000.0,1999.9,10.81593]
[1742749329545,0.00749232,2000.0,1999.9,14.04593]
[1742749330654,12.75618655,2000.6,2000.3,1.00002]
[1742749330956,12.75618655,2000.6,2000.4,3.64604]
[1742749330957,15.98618655,2000.6,2000.4,3.64604]
[1742749331153,1.3364,2000.5,2000.4,2.33614]
[1742749331362,1.3364,2000.5,2000.4,1.66554]
[1742749332049,2.33633,2000.5,2000.4,1.66554]
[1742749333557,1.3364,2000.5,2000.4,1.66554]
[1742749334457,12.75618655,2000.6,2000.5,0.99993]
[1742749334750,0.00749232,2000.7,2000.6,0.99988]
[1742749336047,0.00749232,2000.7,2000.6,1.66988]
[1742749336457,4.604,2001.1,2001.0,0.99968]
[1742749336850,1.374,2001.1,2001.0,0.99968]
[1742749337956,4.86802488,2001.3,2001.2,0.99958]
[1742749338249,4.89022488,2001.3,2001.2,0.99958]
[1742749338554,0.00499488,2001.3,2001.2,0.99958]
[1742749339361,1.30369488,2001.3,2001.2,0.99958]
[1742749342956,2.30322488,2001.3,2001.1,0.9996]
[1742749343255,0.6759,2001.2,2001.1,0.99963]
[1742749343459,2.0817,2001.2,2001.0,1.65316]
[1742749343761,3.08128,2001.2,2001.0,1.65316]
[1742749343962,1.3634,2001.1,2001.0,1.65316]
[1742749344563,1.3634,2001.1,2001.0,3.02966]
[1742749346058,2.36303,2001.1,2001.0,3.02966]
[1742749347972,2.36303,2001.1,2001.0,2.03]
[1742749348270,1.3634,2001.1,2001.0,3.02968]
[1742749348971,2.36303,2001.1,2001.0,3.02968]
[1742749349267,2.36303,2001.1,2001.0,2.03]
[1742749349465,1.3634,2001.1,2001.0,3.02968]
[1742749351066,2.36303,2001.1,2001.0,3.02968]
[1742749351653,1.3634,2001.1,2001.0,3.02968]
[1742749351865,2.36303,2001.1,2001.0,3.02968]
[1742749352066,1.3634,2001.1,2001.0,3.02968]
[1742749353965,2.36303,2001.1,2001.0,3.02968]
[1742749354568,1.3634,2001.1,2001.0,3.02968]
[1742749354869,2.36303,2001.1,2001.0,3.02968]
[1742749355461,2.36303,2001.1,2001.0,2.37618]
[1742749355662,3.05173,2001.1,2001.0,2.37618]
[1742749356267,6.27973,2001.1,2001.0,2.37618]
[1742749356470,0.99968,2001.0,2000.9,4.86298]
[1742749356672,1.3671,2001.0,2000.9,6.15658]
[1742749357273,2.36678,2001.0,2000.9,6.15658]
[1742749357970,1.3671,2001.0,2000.9,6.15658]
[1742749361659,1.3671,2001.0,2000.9,2.94878]
[1742749361864,1.3671,2001.0,2000.9,6.15658]
[1742749364862,2.36678,2001.0,2000.9,6.15658]
[1742749365074,2.36678,2001.0,2000.9,5.50108]
[1742749365267,1.3671,2001.0,2000.9,5.50108]
[1742749366278,2.36678,2001.0,2000.9,5.50108]
[1742749366476,2.49938,2000.9,2000.5,3.2078]
[1742749366775,0.99993,2000.5,2000.4,2.39944]
[1742749366973,2.29121,2000.8,2000.4,3.89939]
[1742749367171,2.29121,2000.8,2000.7,0.99983]
[1742749367172,2.04557841,2000.8,2000.7,0.99983]
[1742749367477,0.99978,2000.8,2000.7,0.99983]
[1742749367873,1.80220068,2000.8,2000.7,0.99983]
[1742749368077,1.80220068,2000.8,2000.7,2.38693]
[1742749368379,0.80242068,2000.8,2000.7,2.38693]
[1742749369370,0.80242068,2000.8,2000.6,0.7091]
[1742749369371,0.99983,2000.7,2000.6,1.70897]
[1742749369573,0.99988,2000.6,2000.5,0.00749232]
[1742749369778,2.45550068,2000.6,2000.5,0.00749232]
[1742749370671,2.45550068,2000.6,2000.5,1.00742232]
[1742749370870,0.6532,2000.6,2000.5,2.39452232]